[Event "Early-Titled-Tuesday-Blitz-December-26-2023"]
[Site "Chess.com"]
[Date "2023.12.26"]
[Round "1"]
[White "Rap_woyska"]
[Black "Alexchess1984"]
[Result "0-1"]
[WhiteElo "2405"]
[BlackElo "2703"]
[TimeControl "180+1"]
[EndTime "8:07:49 PST"]
[Termination "Alexchess1984 won by resignation"]

1. c4 {[%clk 0:02:59.9]} 1... c5 {[%clk 0:02:46.1]} 2. Nc3 {[%clk 0:02:59.8]}
2... g6 {[%clk 0:02:45.9]} 3. Nf3 {[%clk 0:03:00.2]} 3... Bg7 {[%clk 0:02:46.8]}
4. e3 {[%clk 0:03:00.5]} 4... d6 {[%clk 0:02:45.3]} 5. d4 {[%clk 0:03:00.7]}
5... Nd7 {[%clk 0:02:43.3]} 6. Be2 {[%clk 0:02:56.1]} 6... Ngf6 {[%clk
0:02:43.3]} 7. O-O {[%clk 0:02:56.4]} 7... O-O {[%clk 0:02:43.9]} 8. d5 {[%clk
0:02:51.1]} 8... a6 {[%clk 0:02:42]} 9. h3 {[%clk 0:02:48.9]} 9... b5 {[%clk
0:02:36.1]} 10. cxb5 {[%clk 0:02:48.8]} 10... axb5 {[%clk 0:02:37]} 11. Bxb5
{[%clk 0:02:48.7]} 11... Bb7 {[%clk 0:02:36.3]} 12. a4 {[%clk 0:02:35.2]} 12...
Nb6 {[%clk 0:02:15.2]} 13. e4 {[%clk 0:02:33.9]} 13... Qc7 {[%clk 0:02:04.9]}
14. Bf4 {[%clk 0:02:31.5]} 14... Nh5 {[%clk 0:02:01.2]} 15. Bh2 {[%clk
0:02:11.5]} 15... Ba6 {[%clk 0:01:53.8]} 16. Qc2 {[%clk 0:02:09.4]} 16... Bxb5
{[%clk 0:01:49.2]} 17. axb5 {[%clk 0:02:02.2]} 17... Qb7 {[%clk 0:01:43.6]} 18.
Nd2 {[%clk 0:01:59.8]} 18... Nf6 {[%clk 0:01:26]} 19. b3 {[%clk 0:01:33.9]}
19... Nfd7 {[%clk 0:01:07.5]} 20. Nc4 {[%clk 0:01:26.8]} 20... Nxc4 {[%clk
0:00:45.4]} 21. bxc4 {[%clk 0:01:26.8]} 21... Nb6 {[%clk 0:00:41]} 22. Qb3
{[%clk 0:01:26.3]} 22... Rxa1 {[%clk 0:00:40.1]} 23. Rxa1 {[%clk 0:01:25.9]}
23... Ra8 {[%clk 0:00:40.5]} 24. Ra2 {[%clk 0:00:33]} 24... Bxc3 {[%clk
0:00:19.1]} 25. Rxa8+ {[%clk 0:00:32.5]} 25... Qxa8 {[%clk 0:00:20]} 26. Qxc3
{[%clk 0:00:32.4]} 26... Qa4 {[%clk 0:00:20.9]} 27. Bf4 {[%clk 0:00:21.9]} 27...
Qxc4 {[%clk 0:00:17.7]} 28. Qf3 {[%clk 0:00:08.1]} 28... Qxb5 {[%clk 0:00:16.9]}
29. Bh6 {[%clk 0:00:07.9]} 29... Nd7 {[%clk 0:00:16.6]} 30. Bf4 {[%clk
0:00:06.4]} 30... f6 {[%clk 0:00:16.5]} 31. Kh2 {[%clk 0:00:05.3]} 31... Nf8
{[%clk 0:00:16.7]} 32. Qc3 {[%clk 0:00:04.8]} 32... Qb4 {[%clk 0:00:16.8]} 33.
Qc2 {[%clk 0:00:04.6]} 33... Qd4 {[%clk 0:00:16.4]} 34. f3 {[%clk 0:00:04.7]}
34... g5 {[%clk 0:00:16.1]} 35. Bg3 {[%clk 0:00:05]} 35... h5 {[%clk 0:00:15.5]}
36. Bf2 {[%clk 0:00:05.5]} 36... Qe5+ {[%clk 0:00:15.7]} 37. Bg3 {[%clk
0:00:06.2]} 37... Qa1 {[%clk 0:00:16.2]} 38. h4 {[%clk 0:00:06.7]} 38... gxh4
{[%clk 0:00:15.7]} 39. Bxh4 {[%clk 0:00:07.6]} 39... Qe5+ {[%clk 0:00:15.4]} 40.
Bg3 {[%clk 0:00:08]} 40... Qg5 {[%clk 0:00:16]} 41. f4 {[%clk 0:00:06]} 41...
Qg4 {[%clk 0:00:15.8]} 42. Qf2 {[%clk 0:00:06.7]} 42... Ng6 {[%clk 0:00:16]} 43.
f5 {[%clk 0:00:07.2]} 43... h4 {[%clk 0:00:15.6]} 44. fxg6 {[%clk 0:00:04.1]}
44... hxg3+ {[%clk 0:00:15.7]} 45. Qxg3 {[%clk 0:00:05]} 45... Qxg3+ {[%clk
0:00:16.6]} 46. Kxg3 {[%clk 0:00:05.5]} 46... Kg7 {[%clk 0:00:17.5]} 47. Kf4
{[%clk 0:00:04.2]} 47... Kxg6 {[%clk 0:00:18.4]} 48. e5 {[%clk 0:00:04.9]} 48...
fxe5+ {[%clk 0:00:18.5]} 0-1

[Event "Early-Titled-Tuesday-Blitz-December-26-2023"]
[Site "Chess.com"]
[Date "2023.12.26"]
[Round "1"]
[White "ProfessorChess101"]
[Black "Felix-Rose"]
[Result "1-0"]
[WhiteElo "2608"]
[BlackElo "2255"]
[TimeControl "180+1"]
[EndTime "8:07:52 PST"]
[Termination "ProfessorChess101 won by resignation"]

1. c4 {[%clk 0:02:58.3]} 1... e6 {[%clk 0:02:59.2]} 2. Nc3 {[%clk 0:02:57.2]}
2... d5 {[%clk 0:03:00.1]} 3. d4 {[%clk 0:02:56.5]} 3... Nf6 {[%clk 0:03:00.3]}
4. Nf3 {[%clk 0:02:53.8]} 4... Be7 {[%clk 0:03:00.1]} 5. Bf4 {[%clk 0:02:52.9]}
5... O-O {[%clk 0:03:00]} 6. e3 {[%clk 0:02:53.3]} 6... b6 {[%clk 0:03:00.2]} 7.
Be2 {[%clk 0:02:52.3]} 7... Bb7 {[%clk 0:02:58.6]} 8. Rc1 {[%clk 0:02:51.8]}
8... c5 {[%clk 0:02:57.9]} 9. cxd5 {[%clk 0:02:51.5]} 9... Nxd5 {[%clk
0:02:58.2]} 10. Nxd5 {[%clk 0:02:51.2]} 10... Bxd5 {[%clk 0:02:58.7]} 11. a3
{[%clk 0:02:40]} 11... cxd4 {[%clk 0:02:56.2]} 12. Qxd4 {[%clk 0:02:35]} 12...
Nc6 {[%clk 0:02:52.2]} 13. Qd2 {[%clk 0:02:28.5]} 13... Na5 {[%clk 0:02:50.3]}
14. Rd1 {[%clk 0:01:52.4]} 14... Bb3 {[%clk 0:02:22.6]} 15. Qxd8 {[%clk
0:01:51]} 15... Rfxd8 {[%clk 0:02:21.9]} 16. Rxd8+ {[%clk 0:01:48.9]} 16... Rxd8
{[%clk 0:02:22]} 17. Nd4 {[%clk 0:01:48.7]} 17... Bf6 {[%clk 0:02:06.3]} 18.
Nxb3 {[%clk 0:01:42.2]} 18... Nxb3 {[%clk 0:02:05.9]} 19. O-O {[%clk 0:01:08.2]}
19... g5 {[%clk 0:02:04.6]} 20. Bg3 {[%clk 0:01:04.3]} 20... Rd2 {[%clk
0:01:59.2]} 21. Bc4 {[%clk 0:01:03.4]} 21... Rxb2 {[%clk 0:01:55.8]} 22. Rd1
{[%clk 0:00:58.6]} 22... Nd2 {[%clk 0:01:43.1]} 23. Bd3 {[%clk 0:00:50.3]} 23...
Be7 {[%clk 0:01:35.5]} 24. h3 {[%clk 0:00:41.5]} 24... Bxa3 {[%clk 0:01:23.8]}
25. Be5 {[%clk 0:00:40.5]} 25... Ra2 {[%clk 0:01:20.2]} 26. Bc3 {[%clk
0:00:33.7]} 26... Nb3 {[%clk 0:01:04.3]} 27. Bb1 {[%clk 0:00:15.9]} 27... Re2
{[%clk 0:00:49.5]} 28. Bd3 {[%clk 0:00:10.7]} 28... Ra2 {[%clk 0:00:46.5]} 29.
Bb1 {[%clk 0:00:11]} 29... Re2 {[%clk 0:00:46.5]} 30. Rd8+ {[%clk 0:00:10.8]}
30... Bf8 {[%clk 0:00:46.6]} 31. Kf1 {[%clk 0:00:11.4]} 31... Nc1 {[%clk
0:00:24.4]} 32. Bb4 {[%clk 0:00:04.5]} 32... Rb2 {[%clk 0:00:24.4]} 33. Rxf8+
{[%clk 0:00:04.4]} 33... Kg7 {[%clk 0:00:24.7]} 34. Bc3+ {[%clk 0:00:05.3]}
34... Kxf8 {[%clk 0:00:24.9]} 35. Bxb2 {[%clk 0:00:06.2]} 35... Nb3 {[%clk
0:00:25]} 36. Bc2 {[%clk 0:00:06]} 36... Nc5 {[%clk 0:00:25.1]} 37. Ba3 {[%clk
0:00:06.7]} 37... Ke7 {[%clk 0:00:24.2]} 38. Bxh7 {[%clk 0:00:06.1]} 38... Kd6
{[%clk 0:00:24.5]} 39. Bc2 {[%clk 0:00:05.2]} 39... b5 {[%clk 0:00:24.9]} 40.
Bb4 {[%clk 0:00:04.3]} 40... Kc6 {[%clk 0:00:24.4]} 41. g3 {[%clk 0:00:04.3]}
41... Kb6 {[%clk 0:00:22.7]} 42. h4 {[%clk 0:00:04.9]} 42... gxh4 {[%clk
0:00:22.7]} 43. gxh4 {[%clk 0:00:05.8]} 43... a5 {[%clk 0:00:23.3]} 44. Bxc5+
{[%clk 0:00:05.9]} 44... Kxc5 {[%clk 0:00:24]} 45. h5 {[%clk 0:00:06.8]} 45...
a4 {[%clk 0:00:22.2]} 46. h6 {[%clk 0:00:07.4]} 46... a3 {[%clk 0:00:22.1]} 47.
h7 {[%clk 0:00:07.4]} 47... b4 {[%clk 0:00:22.2]} 48. h8=Q {[%clk 0:00:07.6]}
48... Kc4 {[%clk 0:00:21.2]} 49. Qd4+ {[%clk 0:00:08.3]} 49... Kb5 {[%clk
0:00:21.2]} 50. Bb3 {[%clk 0:00:08.9]} 50... Ka5 {[%clk 0:00:21.3]} 51. Qc5+
{[%clk 0:00:08.9]} 51... Ka6 {[%clk 0:00:21.6]} 52. Qxb4 {[%clk 0:00:08.8]} 1-0

[Event "Early-Titled-Tuesday-Blitz-December-26-2023"]
[Site "Chess.com"]
[Date "2023.12.26"]
[Round "1"]
[White "Elsa167"]
[Black "Shuvalov"]
[Result "1-0"]
[WhiteElo "2988"]
[BlackElo "2532"]
[TimeControl "180+1"]
[EndTime "8:07:55 PST"]
[Termination "Elsa167 won on time"]

1. d4 {[%clk 0:03:00.9]} 1... Nf6 {[%clk 0:02:59.2]} 2. c4 {[%clk 0:03:01.2]}
2... g6 {[%clk 0:02:58.7]} 3. Nc3 {[%clk 0:03:01.1]} 3... d5 {[%clk 0:02:59]} 4.
Nf3 {[%clk 0:03:01.1]} 4... Bg7 {[%clk 0:02:58.7]} 5. Bg5 {[%clk 0:03:01.4]}
5... Ne4 {[%clk 0:02:57.1]} 6. Bf4 {[%clk 0:03:00.4]} 6... O-O {[%clk
0:02:55.2]} 7. cxd5 {[%clk 0:02:58.8]} 7... Bf5 {[%clk 0:02:53]} 8. e3 {[%clk
0:02:55.2]} 8... Nxc3 {[%clk 0:02:46.4]} 9. bxc3 {[%clk 0:02:56.1]} 9... Qxd5
{[%clk 0:02:45.9]} 10. Be2 {[%clk 0:02:55.3]} 10... c5 {[%clk 0:02:45.2]} 11.
O-O {[%clk 0:02:55.2]} 11... Nc6 {[%clk 0:02:33.8]} 12. c4 {[%clk 0:02:35.2]}
12... Qd8 {[%clk 0:02:29.4]} 13. d5 {[%clk 0:02:35.5]} 13... Na5 {[%clk
0:02:19.7]} 14. Be5 {[%clk 0:02:19]} 14... e6 {[%clk 0:02:07.1]} 15. Bxg7 {[%clk
0:02:00.6]} 15... Kxg7 {[%clk 0:02:08]} 16. Qd2 {[%clk 0:02:00.6]} 16... exd5
{[%clk 0:02:01.6]} 17. cxd5 {[%clk 0:02:01.5]} 17... b6 {[%clk 0:01:53.3]} 18.
Rfd1 {[%clk 0:01:34.9]} 18... Qf6 {[%clk 0:01:38.8]} 19. Ne1 {[%clk 0:01:04.4]}
19... Rad8 {[%clk 0:01:28.2]} 20. f3 {[%clk 0:01:04.2]} 20... Bd7 {[%clk
0:01:11.2]} 21. e4 {[%clk 0:01:03.7]} 21... Ba4 {[%clk 0:01:09.5]} 22. Rdc1
{[%clk 0:01:01.4]} 22... Nc6 {[%clk 0:00:56.4]} 23. Bf1 {[%clk 0:00:43.5]} 23...
Nd4 {[%clk 0:00:49]} 24. Qf2 {[%clk 0:00:37.6]} 24... Rfe8 {[%clk 0:00:39.7]}
25. Nd3 {[%clk 0:00:35.9]} 25... h5 {[%clk 0:00:27.6]} 26. Nb2 {[%clk
0:00:33.9]} 26... Bd7 {[%clk 0:00:19.4]} 27. a4 {[%clk 0:00:33.3]} 27... h4
{[%clk 0:00:18.8]} 28. h3 {[%clk 0:00:33.8]} 28... Qg5 {[%clk 0:00:16.1]} 29.
Kh1 {[%clk 0:00:32.1]} 29... Nb3 {[%clk 0:00:15.8]} 30. Rd1 {[%clk 0:00:27.5]}
30... Nxa1 {[%clk 0:00:15.8]} 31. Rxa1 {[%clk 0:00:28.4]} 31... Qf6 {[%clk
0:00:14.6]} 32. Rb1 {[%clk 0:00:26.8]} 32... Rxe4 {[%clk 0:00:14.2]} 33. Nc4
{[%clk 0:00:21.6]} 33... Rd4 {[%clk 0:00:11.6]} 34. a5 {[%clk 0:00:20.7]} 34...
Bf5 {[%clk 0:00:10.6]} 35. Rc1 {[%clk 0:00:19]} 35... R4xd5 {[%clk 0:00:08.3]}
36. axb6 {[%clk 0:00:19.2]} 36... axb6 {[%clk 0:00:09.2]} 37. Ne3 {[%clk
0:00:12.4]} 37... Rd2 {[%clk 0:00:08.5]} 38. Qe1 {[%clk 0:00:11.9]} 38... Bc8
{[%clk 0:00:07.5]} 39. Ra1 {[%clk 0:00:08.7]} 39... R2d6 {[%clk 0:00:03.9]} 40.
Ra7 {[%clk 0:00:08.6]} 40... Re6 {[%clk 0:00:03.6]} 41. Qc1 {[%clk 0:00:08]}
41... Qf4 {[%clk 0:00:03.1]} 42. Ra3 {[%clk 0:00:06.3]} 42... Rde8 {[%clk
0:00:02.7]} 43. Qa1+ {[%clk 0:00:05]} 43... Qd4 {[%clk 0:00:03.2]} 44. Qxd4+
{[%clk 0:00:04.6]} 44... cxd4 {[%clk 0:00:04.1]} 45. Nc2 {[%clk 0:00:03.8]}
45... Rd6 {[%clk 0:00:02.4]} 46. Bd3 {[%clk 0:00:03.2]} 46... Bf5 {[%clk
0:00:01.8]} 47. Kg1 {[%clk 0:00:03.8]} 47... Bxd3 {[%clk 0:00:01.6]} 48. Rxd3
{[%clk 0:00:04.7]} 48... Re2 {[%clk 0:00:01.5]} 49. Nb4 {[%clk 0:00:03.9]} 1-0

[Event "Early-Titled-Tuesday-Blitz-December-26-2023"]
[Site "Chess.com"]
[Date "2023.12.26"]
[Round "1"]
[White "giomar27"]
[Black "CSB7"]
[Result "0-1"]
[WhiteElo "2393"]
[BlackElo "2696"]
[TimeControl "180+1"]
[EndTime "8:07:58 PST"]
[Termination "CSB7 won by resignation"]

1. e4 {[%clk 0:02:59.5]} 1... c5 {[%clk 0:02:46.8]} 2. Nf3 {[%clk 0:02:59.3]}
2... Nc6 {[%clk 0:02:47.5]} 3. Bc4 {[%clk 0:02:57.9]} 3... e6 {[%clk 0:02:45.2]}
4. O-O {[%clk 0:02:57.6]} 4... a6 {[%clk 0:02:45.1]} 5. Re1 {[%clk 0:02:56.8]}
5... Nge7 {[%clk 0:02:42]} 6. c3 {[%clk 0:02:51.7]} 6... b5 {[%clk 0:02:32.2]}
7. Bf1 {[%clk 0:02:51.2]} 7... d5 {[%clk 0:02:31.4]} 8. exd5 {[%clk 0:02:41.9]}
8... Nxd5 {[%clk 0:02:32.3]} 9. d4 {[%clk 0:02:42]} 9... Bb7 {[%clk 0:02:32.6]}
10. a4 {[%clk 0:02:37.9]} 10... Qb6 {[%clk 0:02:13.2]} 11. axb5 {[%clk
0:02:34.2]} 11... axb5 {[%clk 0:02:12.6]} 12. Rxa8+ {[%clk 0:02:34.9]} 12...
Bxa8 {[%clk 0:02:13.5]} 13. c4 {[%clk 0:02:00.7]} 13... bxc4 {[%clk 0:02:03.7]}
14. Bxc4 {[%clk 0:02:00.5]} 14... Na5 {[%clk 0:01:50.5]} 15. Bxd5 {[%clk
0:01:45.1]} 15... Bxd5 {[%clk 0:01:51.4]} 16. Nc3 {[%clk 0:01:45.4]} 16... Bb3
{[%clk 0:01:47.3]} 17. Qd3 {[%clk 0:01:36.2]} 17... cxd4 {[%clk 0:01:22.3]} 18.
Nxd4 {[%clk 0:01:34.3]} 18... Bc5 {[%clk 0:01:22.4]} 19. Be3 {[%clk 0:01:25.7]}
19... Bc4 {[%clk 0:01:16.7]} 20. Qe4 {[%clk 0:01:09.6]} 20... O-O {[%clk
0:01:11.5]} 21. Rd1 {[%clk 0:00:43.7]} 21... Qb7 {[%clk 0:00:46]} 22. Qxb7
{[%clk 0:00:38.5]} 22... Nxb7 {[%clk 0:00:46.9]} 23. Nc2 {[%clk 0:00:37.2]}
23... Bb3 {[%clk 0:00:37.1]} 24. Bxc5 {[%clk 0:00:34.2]} 24... Nxc5 {[%clk
0:00:38]} 25. Rd2 {[%clk 0:00:31.8]} 25... g6 {[%clk 0:00:36.4]} 26. f3 {[%clk
0:00:30.7]} 26... Rb8 {[%clk 0:00:35.9]} 27. Ne3 {[%clk 0:00:25.7]} 27... f5
{[%clk 0:00:17.9]} 28. Kf2 {[%clk 0:00:23.7]} 28... h5 {[%clk 0:00:14.8]} 29.
Ke2 {[%clk 0:00:20.1]} 29... f4 {[%clk 0:00:14.6]} 30. Nc2 {[%clk 0:00:18.7]}
30... Bc4+ {[%clk 0:00:13.3]} 31. Kd1 {[%clk 0:00:16.3]} 31... Nd3 {[%clk
0:00:13.7]} 32. Ke2 {[%clk 0:00:13.5]} 32... Nxb2+ {[%clk 0:00:11.7]} 33. Kf2
{[%clk 0:00:14]} 33... Nd3+ {[%clk 0:00:12]} 34. Ke2 {[%clk 0:00:11.3]} 34...
Rb3 {[%clk 0:00:11.3]} 35. Rxd3 {[%clk 0:00:08.6]} 35... Rxc3 {[%clk 0:00:10.9]}
36. Nb4 {[%clk 0:00:07.6]} 36... Rb3 {[%clk 0:00:06.9]} 37. Kd2 {[%clk
0:00:07.6]} 37... Rxb4 {[%clk 0:00:07]} 38. Rd8+ {[%clk 0:00:07.9]} 38... Kf7
{[%clk 0:00:07.2]} 39. Kc3 {[%clk 0:00:08.2]} 39... Ra4 {[%clk 0:00:07.5]} 40.
Rd4 {[%clk 0:00:08]} 40... Bb5 {[%clk 0:00:07.8]} 41. Rd6 {[%clk 0:00:06.5]}
41... Ra2 {[%clk 0:00:05.6]} 42. Kd4 {[%clk 0:00:06.9]} 42... Rxg2 {[%clk
0:00:04.5]} 43. Rb6 {[%clk 0:00:07.6]} 43... Be2 {[%clk 0:00:03.3]} 44. Ke5
{[%clk 0:00:08.3]} 44... Bxf3 {[%clk 0:00:03.2]} 45. Rb5 {[%clk 0:00:08.7]}
45... Bd5 {[%clk 0:00:02.1]} 46. Rb4 {[%clk 0:00:09.5]} 46... f3 {[%clk
0:00:02]} 47. Ra4 {[%clk 0:00:10.1]} 47... Ke7 {[%clk 0:00:02.3]} 48. Ra7+
{[%clk 0:00:11]} 48... Kd8 {[%clk 0:00:02.9]} 49. Kd6 {[%clk 0:00:10.8]} 49...
Kc8 {[%clk 0:00:03.2]} 50. Rh7 {[%clk 0:00:11.3]} 50... f2 {[%clk 0:00:03]} 51.
Rh8+ {[%clk 0:00:10.9]} 51... Kb7 {[%clk 0:00:03]} 52. Rh7+ {[%clk 0:00:11.8]}
52... Kb6 {[%clk 0:00:02.8]} 53. Rh8 {[%clk 0:00:12.7]} 53... f1=Q {[%clk
0:00:02.6]} 54. Rb8+ {[%clk 0:00:13.6]} 54... Bb7 {[%clk 0:00:02.7]} 0-1

[Event "Early-Titled-Tuesday-Blitz-December-26-2023"]
[Site "Chess.com"]
[Date "2023.12.26"]
[Round "1"]
[White "hsmile"]
[Black "zubridis"]
[Result "0-1"]
[WhiteElo "2075"]
[BlackElo "2564"]
[TimeControl "180+1"]
[EndTime "8:07:59 PST"]
[Termination "zubridis won on time"]

1. d4 {[%clk 0:02:58.8]} 1... Nf6 {[%clk 0:02:57.2]} 2. Nc3 {[%clk 0:02:57.7]}
2... d6 {[%clk 0:02:55.4]} 3. e4 {[%clk 0:02:56.9]} 3... g6 {[%clk 0:02:56]} 4.
Be3 {[%clk 0:02:55.8]} 4... c6 {[%clk 0:02:54.9]} 5. Qd2 {[%clk 0:02:53.3]} 5...
Nbd7 {[%clk 0:02:51.8]} 6. Bd3 {[%clk 0:02:50.5]} 6... e5 {[%clk 0:02:51.4]} 7.
Nf3 {[%clk 0:02:49.3]} 7... b5 {[%clk 0:02:31.2]} 8. O-O {[%clk 0:02:46.3]} 8...
Ng4 {[%clk 0:02:23.7]} 9. Bg5 {[%clk 0:02:37.2]} 9... f6 {[%clk 0:02:23.5]} 10.
Bh4 {[%clk 0:02:36.9]} 10... h5 {[%clk 0:01:59.8]} 11. h3 {[%clk 0:02:26.1]}
11... Nh6 {[%clk 0:01:23.9]} 12. dxe5 {[%clk 0:01:44.1]} 12... dxe5 {[%clk
0:01:19.7]} 13. a4 {[%clk 0:01:25]} 13... b4 {[%clk 0:01:16.5]} 14. Na2 {[%clk
0:01:10.8]} 14... a5 {[%clk 0:01:07.3]} 15. c3 {[%clk 0:01:00.7]} 15... Nc5
{[%clk 0:00:18.2]} 16. Rad1 {[%clk 0:00:50.5]} 16... Qxd3 {[%clk 0:00:16.5]} 17.
Qxd3 {[%clk 0:00:49.7]} 17... Nxd3 {[%clk 0:00:17.2]} 18. Rxd3 {[%clk
0:00:49.9]} 18... g5 {[%clk 0:00:16.8]} 19. Bg3 {[%clk 0:00:45.5]} 19... Ba6
{[%clk 0:00:17]} 20. Rfd1 {[%clk 0:00:33.1]} 20... Bxd3 {[%clk 0:00:17]} 21.
Rxd3 {[%clk 0:00:33.7]} 21... h4 {[%clk 0:00:17.9]} 22. Bh2 {[%clk 0:00:33.1]}
22... Rd8 {[%clk 0:00:17.3]} 23. Rxd8+ {[%clk 0:00:30.8]} 23... Kxd8 {[%clk
0:00:18]} 24. cxb4 {[%clk 0:00:25.7]} 24... axb4 {[%clk 0:00:18.9]} 25. Kf1
{[%clk 0:00:20.2]} 25... Nf7 {[%clk 0:00:18.2]} 26. Ke2 {[%clk 0:00:19.6]} 26...
Kc7 {[%clk 0:00:18.2]} 27. Nd2 {[%clk 0:00:17.6]} 27... Bc5 {[%clk 0:00:17.2]}
28. b3 {[%clk 0:00:16]} 28... Rd8 {[%clk 0:00:15.9]} 29. Nc4 {[%clk 0:00:15.7]}
29... Nd6 {[%clk 0:00:15.9]} 30. Nxd6 {[%clk 0:00:11.8]} 30... Rxd6 {[%clk
0:00:16.3]} 31. Nc1 {[%clk 0:00:11.6]} 31... Rd4 {[%clk 0:00:15.5]} 32. f3
{[%clk 0:00:09.1]} 32... Rd8 {[%clk 0:00:14.9]} 33. Nd3 {[%clk 0:00:08.6]} 33...
Be7 {[%clk 0:00:13.7]} 34. Nb2 {[%clk 0:00:08.4]} 34... Bc5 {[%clk 0:00:10.2]}
35. Nc4 {[%clk 0:00:08]} 35... Bd4 {[%clk 0:00:08.6]} 36. Na5 {[%clk 0:00:06.8]}
36... Kd7 {[%clk 0:00:08.4]} 37. Nc4 {[%clk 0:00:06.4]} 37... c5 {[%clk
0:00:08.8]} 38. Na5 {[%clk 0:00:06.1]} 38... Ke6 {[%clk 0:00:09.1]} 39. Nc4
{[%clk 0:00:06.1]} 39... f5 {[%clk 0:00:09.1]} 40. exf5+ {[%clk 0:00:05.6]}
40... Kxf5 {[%clk 0:00:10]} 41. Nd2 {[%clk 0:00:04.1]} 41... Bc3 {[%clk
0:00:09.3]} 42. Ne4 {[%clk 0:00:03.6]} 42... c4 {[%clk 0:00:09.7]} 43. bxc4
{[%clk 0:00:02.7]} 43... Bd4 {[%clk 0:00:10.1]} 44. c5 {[%clk 0:00:01.9]} 44...
Ra8 {[%clk 0:00:09.8]} 45. Nd6+ {[%clk 0:00:01.9]} 45... Ke6 {[%clk 0:00:08.9]}
0-1

[Event "Early-Titled-Tuesday-Blitz-December-26-2023"]
[Site "Chess.com"]
[Date "2023.12.26"]
[Round "1"]
[White "Grammnik"]
[Black "mightysmasher"]
[Result "0-1"]
[WhiteElo "2207"]
[BlackElo "2593"]
[TimeControl "180+1"]
[EndTime "8:08:06 PST"]
[Termination "mightysmasher won by resignation"]

1. d4 {[%clk 0:02:59.3]} 1... d5 {[%clk 0:02:54.3]} 2. c4 {[%clk 0:02:58.6]}
2... e6 {[%clk 0:02:54]} 3. Nc3 {[%clk 0:02:58.4]} 3... Be7 {[%clk 0:02:53.3]}
4. Nf3 {[%clk 0:02:58.5]} 4... b6 {[%clk 0:02:52.4]} 5. g3 {[%clk 0:02:51.8]}
5... Bb7 {[%clk 0:02:52.1]} 6. Bg2 {[%clk 0:02:51.9]} 6... Nf6 {[%clk
0:02:51.5]} 7. cxd5 {[%clk 0:02:51.1]} 7... Nxd5 {[%clk 0:02:49.9]} 8. O-O
{[%clk 0:02:50]} 8... O-O {[%clk 0:02:49.1]} 9. Re1 {[%clk 0:02:50.1]} 9... Nd7
{[%clk 0:02:47.9]} 10. e4 {[%clk 0:02:49.9]} 10... Nxc3 {[%clk 0:02:47.8]} 11.
bxc3 {[%clk 0:02:50.8]} 11... Nf6 {[%clk 0:02:47.9]} 12. Ne5 {[%clk 0:02:49.5]}
12... c5 {[%clk 0:02:46.8]} 13. Be3 {[%clk 0:02:46.7]} 13... Rc8 {[%clk
0:02:45.2]} 14. Qd3 {[%clk 0:02:41.3]} 14... Bd6 {[%clk 0:02:32.4]} 15. Bf4
{[%clk 0:02:27.4]} 15... cxd4 {[%clk 0:02:29.7]} 16. cxd4 {[%clk 0:02:26.8]}
16... Bb4 {[%clk 0:02:28.7]} 17. Rec1 {[%clk 0:02:22.2]} 17... Qe7 {[%clk
0:02:13.5]} 18. Bg5 {[%clk 0:02:20.7]} 18... Rfd8 {[%clk 0:01:54.9]} 19. Ng4
{[%clk 0:02:11.4]} 19... Rxc1+ {[%clk 0:01:13.5]} 20. Rxc1 {[%clk 0:02:10.4]}
20... Ba3 {[%clk 0:00:46.5]} 21. Rc2 {[%clk 0:02:04.4]} 21... h6 {[%clk
0:00:36.7]} 22. Bxf6 {[%clk 0:01:56.5]} 22... gxf6 {[%clk 0:00:36]} 23. Nxh6+
{[%clk 0:01:56.3]} 23... Kg7 {[%clk 0:00:35.1]} 24. Ng4 {[%clk 0:01:52.8]} 24...
Bc5 {[%clk 0:00:30.5]} 25. e5 {[%clk 0:01:31.4]} 25... f5 {[%clk 0:00:23.6]} 26.
Qe3 {[%clk 0:01:17.9]} 26... fxg4 {[%clk 0:00:20.4]} 27. dxc5 {[%clk 0:01:13.9]}
27... Rd1+ {[%clk 0:00:19.9]} 28. Bf1 {[%clk 0:01:14]} 28... Ba6 {[%clk
0:00:19.8]} 29. Rc1 {[%clk 0:01:13.7]} 29... Rxc1 {[%clk 0:00:17.6]} 30. Qxc1
{[%clk 0:01:12.9]} 30... Bxf1 {[%clk 0:00:18.5]} 31. Kxf1 {[%clk 0:01:11]} 31...
bxc5 {[%clk 0:00:18.3]} 32. Qc4 {[%clk 0:01:07.3]} 32... Qg5 {[%clk 0:00:16.7]}
33. Qxc5 {[%clk 0:01:06.3]} 33... a6 {[%clk 0:00:17.3]} 34. a3 {[%clk
0:01:05.4]} 34... Qf5 {[%clk 0:00:17.3]} 35. Qe3 {[%clk 0:01:02.9]} 35... Kf8
{[%clk 0:00:17.1]} 36. Kg2 {[%clk 0:01:01.6]} 36... Ke8 {[%clk 0:00:16.5]} 37.
Qd4 {[%clk 0:00:55]} 37... Qf3+ {[%clk 0:00:16.2]} 38. Kg1 {[%clk 0:00:54.2]}
38... Kf8 {[%clk 0:00:15.9]} 39. Qd8+ {[%clk 0:00:41.3]} 39... Kg7 {[%clk
0:00:15.8]} 40. Qg5+ {[%clk 0:00:40.2]} 40... Kh7 {[%clk 0:00:14.9]} 41. Qh4+
{[%clk 0:00:29.3]} 41... Kg6 {[%clk 0:00:14.4]} 42. Qh8 {[%clk 0:00:24]} 42...
Kf5 {[%clk 0:00:12.2]} 43. Qf6+ {[%clk 0:00:22.6]} 43... Ke4 {[%clk 0:00:12.2]}
44. h3 {[%clk 0:00:15.9]} 44... Qxf6 {[%clk 0:00:09.3]} 45. exf6 {[%clk
0:00:15.6]} 45... gxh3 {[%clk 0:00:09.6]} 46. Kh2 {[%clk 0:00:15.1]} 46... Kf5
{[%clk 0:00:09.6]} 47. Kxh3 {[%clk 0:00:15]} 47... Kxf6 {[%clk 0:00:10.5]} 48.
Kg4 {[%clk 0:00:15.3]} 48... Kg6 {[%clk 0:00:10.5]} 49. Kf4 {[%clk 0:00:15.3]}
49... f6 {[%clk 0:00:11.4]} 50. f3 {[%clk 0:00:15.3]} 50... e5+ {[%clk
0:00:11.5]} 51. Ke4 {[%clk 0:00:15.2]} 51... Kg5 {[%clk 0:00:12.4]} 52. f4+
{[%clk 0:00:14]} 52... exf4 {[%clk 0:00:12.5]} 53. gxf4+ {[%clk 0:00:14.3]}
53... Kg4 {[%clk 0:00:13.4]} 54. a4 {[%clk 0:00:13.3]} 54... a5 {[%clk
0:00:13.7]} 55. Ke3 {[%clk 0:00:12.7]} 55... f5 {[%clk 0:00:13.6]} 0-1